bitfinex-derivatives/quotes_ETHF0:USTF0_20250824
["timestamp","ask_amount","ask_price","bid_price","bid_amount"]
[1756034246800,20.0974,4733.0,4732.9,0.237]
[1756034247203,20.0974,4733.0,4732.8,1.13844625]
[1756034247403,19.9818,4732.9,4732.8,0.7366]
[1756034247612,19.9818,4732.9,4732.8,1.1273]
[1756034247912,19.9818,4732.9,4732.8,1.3643]
[1756034248304,19.9818,4732.9,4732.8,1.1432]
[1756034248706,19.9818,4732.9,4732.8,1.3643]
[1756034249100,19.9818,4732.9,4732.8,2.50274625]
[1756034249807,19.9828,4732.9,4732.8,2.50274625]
[1756034251411,19.9828,4732.9,4732.8,1.3643]
[1756034251606,19.9828,4732.9,4732.8,1.1432]
[1756034251911,19.9828,4732.9,4732.8,0.7886]
[1756034252509,19.9828,4732.9,4732.8,1.1432]
[1756034253413,20.0982,4732.9,4732.8,0.237]
[1756034253813,20.0982,4732.9,4732.7,1.13844625]
[1756034254014,0.6432,4732.8,4732.7,1.13844625]
[1756034254710,5.9356,4732.7,4731.8,1.13772201]
[1756034254914,5.619,4732.5,4728.0,0.237]
[1756034255110,1.49068517,4731.8,4728.0,0.237]
[1756034255303,0.0211,4729.4,4727.5,0.237]
[1756034255507,50.76111221,4729.3,4727.3,6.64128878]
[1756034255809,20.33611221,4729.2,4727.4,6.64128878]
[1756034256009,0.0211,4729.0,4727.6,0.5757]
[1756034256205,0.0211,4728.8,4727.7,0.237]
[1756034256414,20.33311221,4728.7,4728.1,0.237]
[1756034256610,0.44711221,4728.6,4727.9,0.4581]
[1756034256816,0.0012,4728.4,4728.1,0.8059]
[1756034257010,0.44711221,4728.3,4728.2,0.2231]
[1756034257213,0.44711221,4728.4,4728.0,5.1243261]
[1756034257509,0.0012,4728.3,4728.1,5.1243261]
[1756034257714,0.0012,4728.3,4727.8,0.2231]
[1756034257715,0.0012,4728.7,4728.2,0.8059]
[1756034257911,20.54829923,4728.6,4727.9,1.51696268]
[1756034258218,0.0012,4728.4,4727.8,0.5828]
[1756034258422,0.66829923,4728.3,4728.2,0.4489]
[1756034258624,20.054,4729.1,4728.2,2.02286268]
[1756034258821,51.2953,4729.3,4728.3,6.64128878]
[1756034259019,0.8013,4729.2,4726.4,0.357]
[1756034259327,0.8013,4729.0,4726.7,0.357]
[1756034259517,0.5748,4728.8,4726.9,0.357]
[1756034259721,0.3407,4728.8,4726.6,0.357]
[1756034259919,0.5672,4729.2,4728.9,0.357]
[1756034260126,0.4606,4729.8,4729.2,1.51696268]
[1756034260328,20.4587,4729.7,4727.0,0.0211]
[1756034260525,20.118,4729.7,4726.8,6.64128878]
[1756034260729,40.8,4729.8,4726.4,30.4731]
[1756034260730,0.8013,4729.5,4727.0,0.8059]
[1756034260934,0.8013,4729.3,4727.3,0.8059]
[1756034261126,0.3407,4729.2,4726.8,0.0211]
[1756034261322,0.2265,4729.1,4727.1,0.8059]
[1756034261524,0.2265,4729.1,4727.3,0.8059]
[1756034261724,0.2265,4729.1,4726.5,6.64128878]
[1756034261926,0.2265,4729.1,4727.6,0.8059]
[1756034262128,0.2265,4729.1,4726.6,0.8059]
[1756034262324,0.2341,4729.4,4726.9,0.2231]
[1756034262631,0.2265,4729.2,4727.1,0.2258]
[1756034262833,20.1571,4729.6,4726.5,6.64128878]
[1756034263132,0.2265,4728.7,4727.5,0.2258]
[1756034263431,20.136,4728.6,4727.6,1.51696268]
[1756034264034,0.8013,4728.5,4727.6,1.51696268]
[1756034264234,20.136,4728.6,4727.4,0.2231]
[1756034264422,0.8013,4728.2,4727.5,6.64128878]
[1756034264623,0.8013,4728.5,4727.5,6.64128878]
[1756034264828,0.8013,4728.4,4727.6,1.51696268]
[1756034265022,0.8013,4728.2,4727.6,1.51696268]
[1756034265224,0.8013,4728.0,4727.6,1.51696268]
[1756034265429,0.3407,4728.5,4727.6,1.51696268]
[1756034265628,0.8013,4728.5,4727.6,1.51696268]
[1756034265822,0.8013,4728.3,4727.6,1.51696268]
[1756034266030,0.3407,4728.1,4727.6,6.64128878]
[1756034266238,0.8013,4727.9,4727.6,6.64128878]
[1756034266428,0.8013,4727.6,4727.4,0.2231]
[1756034266628,20.12,4727.8,4727.5,6.64128878]
[1756034266830,40.8,4728.4,4727.2,0.5828]
[1756034267030,0.5672,4728.2,4727.2,0.5828]
[1756034267331,0.3407,4728.2,4727.3,6.64128878]
[1756034267627,20.111,4728.1,4727.3,6.64128878]
[1756034267832,0.4606,4727.9,4727.3,6.64128878]
[1756034268032,0.5672,4727.6,4727.5,0.8059]
[1756034268223,20.4437,4727.6,4727.5,0.8059]
[1756034268429,20.103,4727.6,4727.5,2.32286268]
[1756034268625,0.2265,4727.9,4727.7,0.2231]
[1756034268832,20.601,4727.8,4727.7,1.3607]
[1756034269030,20.596,4727.8,4727.7,1.3607]
[1756034269230,0.3407,4728.2,4727.7,8.00198878]
[1756034269435,20.2523,4728.1,4728.0,1.3607]
[1756034269734,0.8013,4728.0,4726.3,0.0211]
[1756034269930,0.3407,4727.9,4726.3,0.8059]
[1756034270131,1.3571,4727.8,4727.7,0.7779]
[1756034270338,0.8013,4727.7,4726.3,1.51696268]
[1756034270536,0.1583,4726.4,4726.3,1.3607]
[1756034270831,0.5433,4726.9,4726.8,0.5548]
[1756034271026,0.96940272,4726.9,4726.8,2.87766268]
[1756034271233,0.65260272,4726.9,4726.8,6.4850261]
[1756034271432,0.81090272,4726.9,4726.8,6.4850261]
[1756034271633,0.65260272,4726.9,4726.8,6.4850261]
[1756034273233,0.65260272,4726.9,4726.8,10.4850261]
[1756034273436,0.65260272,4726.9,4726.8,6.4850261]
[1756034274533,0.65260272,4726.9,4726.8,6.2850261]
[1756034274730,0.5558,4727.9,4727.8,1.83086268]
[1756034274936,0.2368,4727.7,4726.9,1.11768175]
[1756034275137,0.5775,4727.7,4726.1,0.0211]
[1756034275337,1.3674,4727.7,4727.6,1.51696268]
[1756034275637,0.19457255,4727.7,4726.4,0.4489]
[1756034275832,0.19457255,4727.6,4726.4,0.4489]
[1756034276033,0.2341,4727.3,4726.6,0.2258]
[1756034276232,0.3973,4726.7,4726.6,0.5548]
[1756034276542,0.9721,4726.7,4726.6,0.5548]
[1756034276732,0.9721,4726.7,4726.6,1.67248175]
[1756034277034,0.9721,4726.7,4726.6,2.41498175]
[1756034277432,0.738,4726.7,4726.6,2.41498175]
[1756034277638,0.3973,4726.7,4726.6,2.41498175]
[1756034277836,4.9176,4726.7,4725.5,0.2258]
[1756034278030,0.2368,4725.5,4725.1,0.5828]
[1756034278228,0.2368,4726.4,4725.7,0.2258]
[1756034278428,31.0525,4726.8,4726.7,0.8059]
[1756034278636,0.18481753,4726.8,4726.7,2.32286268]
[1756034278936,0.16965331,4731.0,4726.7,2.32286268]
[1756034278937,0.3407,4728.8,4726.7,0.0211]
[1756034279242,0.3407,4728.8,4725.8,30.476]
[1756034279243,0.3407,4728.6,4726.6,0.2258]
[1756034279538,0.5775,4728.4,4726.5,0.8059]
[1756034279738,0.18486439,4728.3,4726.3,0.8059]
[1756034280034,0.5775,4728.4,4726.2,0.0211]
[1756034280236,0.1825126,4728.3,4725.9,0.0211]
[1756034280436,0.5775,4728.4,4726.6,0.5828]
[1756034280733,0.2368,4729.7,4726.1,0.0211]
[1756034280935,0.2368,4729.7,4726.8,0.0211]
[1756034281235,0.3407,4729.9,4726.7,0.0211]
[1756034281535,0.2368,4729.8,4727.5,0.8059]
[1756034281737,0.2368,4729.8,4726.8,2.7546411]
[1756034281738,0.3407,4729.7,4727.4,0.0211]
[1756034282034,0.5775,4730.1,4727.7,0.0211]
[1756034282235,0.2368,4729.9,4727.1,1.09236676]
[1756034282542,0.2368,4729.9,4718.9,190.507]
[1756034282543,0.2368,4729.9,4725.6,0.5828]
[1756034282741,0.2368,4729.9,4725.7,0.8059]
[1756034282937,2.112,4730.4,4724.2,0.0211]
[1756034283143,20.531,4730.3,4724.9,0.0211]
[1756034283344,20.531,4730.3,4725.9,0.5828]
[1756034283637,20.57,4730.2,4725.9,0.0211]
[1756034283842,20.567,4730.1,4726.2,0.4489]
[1756034284043,20.567,4730.1,4726.0,2.70723489]
[1756034284044,1.87864755,4728.5,4726.4,0.2231]
[1756034284245,1.87864755,4728.5,4726.1,0.0211]
[1756034284436,1.87864755,4728.5,4726.6,0.8059]
[1756034284745,1.50589613,4727.8,4726.5,0.8059]
[1756034284946,0.2368,4729.4,4723.2,190.481]
[1756034284947,0.09774384,4727.9,4726.8,0.4198]
[1756034285239,0.2341,4729.3,4726.6,2.71755432]
[1756034285444,0.2341,4729.3,4726.6,0.0211]
[1756034285646,0.2341,4729.3,4726.9,2.73865432]
[1756034285847,0.4709,4729.9,4726.9,20.5881]
[1756034286141,0.2368,4730.5,4727.1,0.0211]
[1756034286542,0.2368,4730.5,4727.2,2.77707323]
[1756034286747,0.50442575,4730.4,4727.3,0.0211]
[1756034286934,0.50442575,4730.3,4727.3,0.0211]
[1756034287139,0.50442575,4730.2,4727.4,2.78419215]
[1756034287340,0.50442575,4730.1,4727.4,2.78419215]
[1756034287644,0.2375,4730.2,4727.4,2.78419215]
[1756034287645,0.50442575,4730.0,4727.4,2.78419215]
[1756034287838,0.50442575,4729.9,4727.4,2.78419215]
[1756034288147,0.50442575,4729.8,4727.4,2.78419215]
[1756034288445,0.50442575,4729.7,4727.4,2.78419215]
[1756034288636,0.50442575,4729.6,4727.4,2.78419215]
[1756034288840,0.50442575,4729.5,4727.4,2.78419215]
[1756034289037,0.50442575,4729.4,4727.4,2.78419215]
[1756034289238,0.5022895,4729.3,4727.5,0.0211]
[1756034289432,0.2326,4731.6,4727.7,0.0211]
[1756034289646,0.5021341,4731.5,4727.7,0.0211]
[1756034289845,0.7396341,4731.4,4727.9,0.0211]
[1756034290042,0.5021341,4731.3,4727.9,0.0211]
[1756034290240,0.569,4730.7,4728.0,2.77071982]
[1756034290453,0.0211,4730.2,4725.3,1.89567188]
[1756034290640,0.0211,4730.0,4726.0,2.77071982]
[1756034290839,40.8,4729.5,4725.4,2.69097752]
[1756034291040,0.2375,4729.1,4725.4,2.69097752]
[1756034291341,0.5021341,4729.0,4724.7,1.89567188]
[1756034291543,0.8065,4728.6,4724.8,2.69097752]
[1756034291744,0.8065,4728.4,4724.8,2.69097752]
[1756034291940,40.8,4729.5,4724.8,2.69097752]
[1756034292145,0.50150528,4729.4,4724.8,2.69097752]
[1756034292344,40.8,4729.5,4724.8,2.69097752]
[1756034292345,0.50150528,4729.3,4724.8,2.69097752]
[1756034292647,0.8065,4729.1,4725.1,1.89567188]
[1756034292844,0.569,4728.8,4725.1,1.89567188]
[1756034293040,0.2326,4728.4,4725.2,4.71303783]
[1756034293239,0.2375,4728.3,4725.6,0.0211]
[1756034293446,0.2375,4728.3,4725.9,1.89567188]
[1756034293641,0.2375,4728.3,4726.4,1.89567188]
[1756034293847,0.2375,4728.3,4726.3,1.89567188]
[1756034294046,0.2375,4728.3,4726.5,2.80948602]
[1756034294351,0.2375,4728.3,4726.4,2.80948602]
[1756034294648,0.50089578,4728.2,4726.3,21.066]
[1756034294950,0.2375,4728.3,4726.4,2.80030814]
[1756034294951,0.50089578,4728.1,4726.4,2.80030814]
[1756034295143,0.2375,4728.3,4726.4,2.80030814]
[1756034295450,0.2375,4727.9,4726.4,2.80030814]
[1756034295644,0.2375,4727.6,4725.7,51.501]
[1756034295843,0.2375,4727.6,4725.7,30.468]
[1756034296044,0.2375,4727.6,4725.8,2.78277752]
[1756034296846,0.4701,4728.2,4725.8,2.78277752]
[1756034298152,30.471,4729.9,4725.8,2.78277752]
[1756034298354,0.2375,4727.7,4725.8,2.78277752]
[1756034298647,0.569,4727.6,4725.8,2.78277752]
[1756034298852,0.2326,4727.5,4725.8,2.78277752]
[1756034299053,0.4701,4727.5,4725.8,2.78277752]
[1756034300254,0.2326,4727.5,4725.8,2.78277752]
[1756034300444,0.2375,4727.4,4725.8,2.78277752]
[1756034301454,0.2375,4727.2,4725.8,2.78277752]
[1756034303259,0.2326,4727.1,4725.8,2.78277752]
[1756034303459,0.2326,4727.1,4725.9,20.945]
[1756034303859,0.2326,4727.1,4726.0,2.72427897]
[1756034305355,0.2375,4727.2,4726.0,2.72427897]
[1756034308558,0.2326,4727.7,4726.0,2.72427897]
[1756034308862,0.2375,4727.6,4726.0,11.64827897]
[1756034309062,0.2375,4727.6,4726.1,1.89567188]
[1756034309564,0.3364,4728.0,4726.2,4.65625608]
[1756034309953,0.2375,4727.9,4726.2,1.89567188]
[1756034310157,0.4701,4727.9,4726.2,1.89567188]
[1756034310360,0.4701,4727.9,4726.3,2.70996657]
[1756034310560,0.4701,4727.9,4726.3,4.60563845]
[1756034310859,0.2375,4727.8,4726.3,1.89567188]
[1756034311159,0.2375,4727.8,4726.4,4.6633333]
[1756034311357,0.2375,4727.8,4726.5,1.89567188]
[1756034311553,0.569,4727.7,4726.5,1.89567188]
[1756034311759,0.2375,4727.6,4726.6,2.69367516]
[1756034312161,0.2326,4727.5,4726.5,1.89567188]
[1756034312466,0.2375,4727.4,4726.6,1.89567188]
[1756034314166,0.2375,4727.4,4726.7,1.89567188]
[1756034314475,0.2326,4728.0,4726.7,4.678021]
[1756034314768,0.2375,4727.9,4726.9,1.89567188]
[1756034314957,0.2375,4727.9,4727.0,20.782]
[1756034315160,0.2375,4727.9,4727.0,22.67767188]
[1756034316367,0.7728,4727.9,4727.0,22.67767188]
[1756034317471,0.7728,4727.9,4727.1,1.89567188]
[1756034317872,0.2375,4727.9,4727.1,1.89567188]
[1756034318077,0.2375,4727.9,4727.3,1.89567188]
[1756034319771,0.3909,4727.9,4727.3,1.89567188]
[1756034320072,0.234,4727.8,4727.4,1.89567188]
[1756034320270,0.234,4727.8,4727.5,1.89567188]
[1756034320469,0.0211,4730.6,4727.5,1.89567188]
[1756034320470,0.234,4728.3,4727.5,32.36767188]
[1756034320675,0.808,4728.2,4727.8,1.89567188]
[1756034320871,0.5248,4728.0,4727.9,20.706]
[1756034321075,0.9973,4728.0,4727.9,20.706]
[1756034323077,1.3328,4728.0,4727.9,20.706]
[1756034323869,0.234,4728.0,4727.9,20.706]
[1756034324676,0.4725,4728.0,4727.9,20.706]
[1756034325078,0.6259,4728.0,4727.9,20.706]
[1756034325473,0.9973,4728.0,4727.9,20.706]
[1756034325665,1.3328,4728.0,4727.9,20.706]
[1756034326571,0.234,4728.0,4727.9,20.706]
[1756034326878,0.5248,4728.4,4727.9,20.706]
[1756034327071,0.2385,4728.2,4727.9,20.706]
[1756034327378,0.234,4728.0,4727.9,20.706]
[1756034327776,0.4725,4728.0,4727.9,20.706]
[1756034328074,0.234,4728.0,4727.9,20.706]
[1756034329377,0.4725,4728.0,4727.9,20.706]
[1756034329573,0.6259,4728.0,4727.9,20.706]
[1756034329879,0.234,4728.0,4727.9,20.706]
[1756034330674,0.6259,4728.0,4727.9,20.706]
[1756034332875,1.3328,4727.6,4727.5,30.472]
[1756034333081,0.4725,4727.6,4727.5,51.02]
[1756034333881,0.9973,4727.6,4727.5,51.02]
[1756034334880,1.3328,4727.6,4727.5,51.02]
[1756034336176,0.9973,4727.6,4727.5,51.02]
[1756034339885,0.4725,4727.6,4727.5,51.02]
[1756034340586,0.234,4727.6,4727.5,51.02]
[1756034341174,0.2385,4727.9,4727.5,51.02]
[1756034341375,0.3714,4728.3,4727.8,0.1457]
[1756034341582,0.2385,4728.2,4728.1,0.1457]
[1756034341783,0.2385,4728.2,4728.1,20.7579]
[1756034342190,0.6148,4728.2,4728.1,20.7579]
[1756034342889,0.6099,4728.6,4728.1,20.7579]
[1756034343091,1.0988,4728.5,4728.4,0.1457]
[1756034343386,1.3328,4728.5,4728.4,20.5787]
[1756034343591,0.9458,4728.5,4728.4,20.5787]
[1756034343780,1.1843,4728.5,4728.4,20.7369]
[1756034343977,1.3328,4728.5,4728.4,20.5787]
[1756034346584,0.3707,4728.2,4728.1,1.89567188]
[1756034346788,1.3418,4728.2,4728.1,20.402]
[1756034346989,1.3418,4728.2,4728.1,20.1594]
[1756034347297,5.3418,4728.2,4728.1,21.68193296]
[1756034347494,5.3418,4728.2,4728.1,20.1594]
[1756034348988,1.3418,4728.1,4728.0,1.77253296]
[1756034349189,1.3418,4728.1,4728.0,0.25]
[1756034349390,5.3418,4728.1,4728.0,0.25]
[1756034349688,1.3418,4727.8,4727.7,20.372]
[1756034351300,1.3418,4727.6,4727.5,21.89053296]
[1756034351494,1.3418,4727.6,4727.5,20.368]
[1756034351895,1.3418,4727.6,4727.5,21.3963]
[1756034354198,1.3418,4727.6,4727.5,21.1647]
[1756034355593,1.3418,4727.6,4727.5,20.368]
[1756034355790,1.3418,4727.4,4727.1,1.52253296]
[1756034355994,1.3418,4727.3,4727.2,20.328]
[1756034356190,1.3418,4727.3,4727.2,20.307]
[1756034357599,1.3418,4727.3,4727.2,20.8718]
[1756034358005,1.3418,4727.3,4727.2,21.1037]
[1756034358214,1.3418,4727.3,4727.2,21.3353]
[1756034358699,1.3418,4727.3,4727.2,21.1037]
[1756034359106,1.3418,4727.3,4727.2,20.8539]
[1756034359300,1.3418,4727.3,4726.6,0.3848]
[1756034359301,0.374,4726.7,4726.6,0.3848]
[1756034359500,44.307,4729.3,4726.3,1.77233296]
[1756034359501,1.3418,4726.6,4726.5,20.281]
[1756034359703,0.8183,4726.5,4726.3,0.2498]
[1756034360002,1.3418,4726.4,4726.3,0.2498]
[1756034360205,1.3418,4726.4,4726.3,20.275]
[1756034360402,1.3418,4726.4,4726.3,20.273]
[1756034360403,0.5235,4726.4,4726.3,20.273]
[1756034360609,0.5235,4726.4,4725.8,1.52253296]
[1756034360917,0.5235,4726.4,4725.7,0.2498]
[1756034361103,0.5235,4725.8,4725.7,0.7967]
[1756034361410,0.5235,4725.8,4725.5,1.52253296]
[1756034361602,0.5235,4725.6,4725.3,0.2498]
[1756034361808,1.3418,4725.5,4725.4,20.8318]
[1756034362511,0.5235,4725.5,4725.1,2.00393296]
[1756034362707,1.3418,4725.3,4725.2,20.262]
[1756034363012,1.3418,4725.3,4725.2,21.2903]
[1756034365106,1.3418,4725.3,4725.2,1.0283]
[1756034366109,1.3418,4725.3,4725.2,21.2763]
[1756034366311,1.3418,4725.3,4725.2,20.8829]
[1756034366516,1.3418,4725.3,4725.2,20.8719]
[1756034366906,1.3418,4725.3,4725.2,21.0337]
[1756034367308,1.3418,4725.3,4725.2,21.2653]
[1756034368512,1.3418,4725.3,4724.4,1.52253296]
[1756034368513,0.5235,4724.5,4724.4,1.52253296]
[1756034368710,0.5235,4724.5,4724.3,0.16878544]
[1756034368908,1.3418,4724.4,4724.3,1.0283]
[1756034370815,1.3418,4724.4,4724.3,0.96560199]
[1756034371011,1.3418,4724.4,4724.3,1.19720199]
[1756034371412,1.0003,4724.0,4723.5,0.2316]
[1756034371615,0.5817,4723.9,4723.2,0.65638376]
[1756034371806,1.3418,4723.8,4723.7,1.03]
[1756034372206,0.1495,4723.3,4723.2,0.4831]
[1756034372407,0.3415,4722.6,4721.9,1.52253296]
[1756034372614,0.5817,4722.6,4722.0,1.1903]
[1756034372814,0.7637,4722.6,4722.5,1.03]
[1756034373013,0.0211,4723.9,4722.5,0.7072]
[1756034373219,0.5817,4723.7,4722.6,0.4831]
[1756034373516,0.5235,4722.7,4722.6,1.03]
[1756034373711,0.2366,4722.7,4722.6,1.03]
[1756034373907,0.2366,4723.1,4723.0,1.03]
[1756034374109,0.4768,4723.6,4723.1,0.4831]
[1756034374310,0.20795813,4726.9,4722.2,20.244]
[1756034374311,3.5281,4725.7,4722.2,20.244]
[1756034374613,0.0211,4726.2,4722.8,0.0211]
[1756034374814,0.0211,4726.2,4723.0,0.0211]
[1756034375011,0.8183,4725.7,4723.4,0.6434]
[1756034375214,0.2402,4726.0,4723.5,0.2316]
[1756034375414,0.0211,4726.2,4723.7,0.2316]
[1756034375612,0.8183,4725.7,4723.7,0.2316]
[1756034375814,0.5817,4726.0,4724.1,0.1603]
[1756034376124,0.8183,4726.0,4724.2,0.4831]
[1756034376314,0.8183,4725.9,4724.2,0.4831]
[1756034376512,0.8183,4726.0,4724.2,0.4831]
[1756034376717,0.8039,4725.8,4724.2,0.4831]
[1756034376921,0.0211,4726.7,4724.2,0.4831]
[1756034377125,0.8039,4726.0,4724.2,0.4831]
[1756034377423,0.3379,4725.8,4724.3,0.2496]
[1756034377612,0.3379,4725.6,4724.4,0.2406]
[1756034377813,0.3379,4725.5,4724.5,0.2496]
[1756034378119,0.6044,4724.0,4723.9,0.4748]
[1756034378427,0.1489,4723.4,4723.3,0.5301]
[1756034378717,0.3779,4723.4,4723.3,0.5301]
[1756034379126,0.229,4723.4,4723.3,1.1794]
[1756034380621,1.3259,4723.4,4722.9,0.2496]
[1756034380817,20.336,4724.8,4722.5,0.4902]
[1756034381017,20.336,4724.8,4722.6,0.4902]
[1756034381413,0.1489,4722.8,4722.7,0.5545]
[1756034381622,0.237,4725.1,4722.1,0.16632517]
[1756034381820,0.8039,4724.9,4723.1,0.4902]
[1756034382019,0.3379,4724.7,4723.2,0.4902]
[1756034382218,0.8039,4724.6,4723.2,0.4902]
[1756034382526,40.8,4725.3,4723.2,0.4902]
[1756034382728,20.327,4725.0,4723.2,0.4902]
[1756034382928,0.8039,4724.9,4723.2,0.4902]
[1756034383523,0.237,4724.7,4723.0,0.1591]
[1756034383724,0.3379,4724.5,4723.3,0.2496]
[1756034384029,0.988,4723.4,4723.3,1.0203]
[1756034384322,0.5749,4723.9,4723.3,1.1794]
[1756034384520,0.229,4723.8,4723.3,0.6892]
[1756034384717,40.8,4725.3,4723.5,0.2406]
[1756034384718,0.3731,4723.7,4723.5,0.2406]
[1756034384924,1.3259,4723.7,4723.6,1.0203]
[1756034385221,0.3779,4723.7,4723.6,1.0203]
[1756034385421,0.5749,4724.2,4723.6,1.1794]
[1756034385623,1.0969,4724.2,4724.1,0.5301]
[1756034385823,1.0969,4724.2,4724.1,1.0203]
[1756034386223,1.3259,4724.2,4724.1,1.0203]
[1756034387727,0.751,4724.2,4724.1,1.0203]
[1756034388026,0.229,4724.2,4724.1,1.1794]
[1756034388433,0.3779,4724.2,4724.1,1.0203]
[1756034388633,1.3259,4724.2,4724.1,1.0203]
[1756034390028,0.229,4724.2,4724.1,1.0203]
[1756034390339,0.6044,4724.2,4724.1,1.0203]
[1756034391335,0.229,4724.2,4724.1,1.1794]
[1756034391533,0.237,4725.5,4724.2,0.4902]
[1756034391731,1.3259,4725.3,4725.2,1.0203]
[1756034392633,0.751,4725.3,4725.2,1.0203]
[1756034392936,1.3259,4725.3,4725.2,1.0203]
[1756034393937,0.522,4724.7,4724.0,0.1591]
[1756034394131,0.751,4724.2,4724.1,1.0203]
[1756034394334,1.3259,4724.2,4724.1,1.0203]
[1756034394633,0.522,4723.9,4723.8,1.0203]
[1756034394841,1.3259,4723.9,4723.8,1.0203]
[1756034395035,0.5749,4724.3,4723.8,1.1794]
[1756034395239,0.229,4724.2,4724.1,0.5301]
[1756034395437,0.3779,4724.2,4724.1,1.0203]
[1756034395742,0.5669,4724.8,4724.2,0.2406]
[1756034395935,0.229,4724.8,4724.7,1.1794]
[1756034396235,0.3779,4724.8,4724.7,1.0203]
[1756034396436,1.0969,4724.8,4722.9,0.6493]
[1756034396638,0.0211,4725.7,4723.0,0.0211]
[1756034396828,0.49563439,4725.6,4723.0,0.0211]
[1756034397028,1.3259,4725.2,4725.1,0.8636]
[1756034397336,1.3259,4725.2,4725.1,1.0203]
[1756034398439,0.6044,4725.2,4725.1,1.0203]
[1756034398741,0.1489,4725.3,4725.2,1.0203]
[1756034398943,1.3259,4725.3,4725.2,1.0203]
[1756034400842,0.229,4725.3,4725.2,1.0203]
[1756034401140,0.229,4725.3,4725.2,1.1794]
[1756034401335,0.3779,4725.3,4725.2,1.1794]
[1756034401537,0.751,4725.3,4725.2,1.0203]
[1756034401831,0.237,4725.7,4725.2,5.1794]
[1756034402036,0.237,4727.3,4725.6,0.2406]
[1756034402233,20.201,4728.1,4725.8,0.4902]
[1756034402234,0.8039,4727.1,4725.8,0.4902]
[1756034402435,1.0889,4725.9,4725.8,1.0203]
[1756034402629,0.229,4725.9,4725.8,1.1794]
[1756034403235,0.229,4726.2,4725.8,0.9298]
[1756034403436,0.759,4726.3,4726.2,0.5301]
[1756034403741,1.3259,4726.3,4726.2,1.0203]
[1756034403929,1.3259,4726.3,4725.9,0.1591]
[1756034403930,0.522,4726.3,4725.4,0.4902]
[1756034404137,0.8599,4725.0,4724.9,0.5301]
[1756034404435,1.3259,4725.0,4724.9,0.5301]
[1756034404635,1.3259,4725.0,4724.9,1.0203]
[1756034404636,0.229,4725.0,4724.9,1.0203]
[1756034404843,0.229,4725.0,4724.9,1.1794]
[1756034405840,0.237,4725.4,4725.2,0.5301]
[1756034406030,0.5669,4725.2,4724.5,0.1591]
[1756034406231,1.3259,4725.1,4725.0,0.3973]
[1756034406638,1.3259,4725.1,4725.0,1.0203]
[1756034409239,1.3259,4725.1,4725.0,0.1567]
[1756034409445,0.7476,4725.1,4725.0,1.0121]
[1756034409746,0.7476,4725.1,4725.0,1.1715]
[1756034410839,0.2256,4725.1,4725.0,1.1715]
[1756034411544,0.2256,4725.9,4725.6,0.2217]
[1756034411738,0.7648,4725.9,4725.8,1.0121]
[1756034411938,1.3402,4725.9,4725.8,1.0121]
[1756034412139,0.3815,4725.9,4725.8,1.1715]
[1756034412445,0.7648,4726.6,4726.5,1.0121]
[1756034412645,0.3562,4727.0,4725.0,30.493]
[1756034412646,1.3402,4726.4,4726.3,0.1568]
[1756034412839,1.3402,4726.4,4726.0,0.4718]
[1756034413039,0.1474,4726.1,4726.0,0.6286]
[1756034413246,1.3402,4726.1,4726.0,1.0121]
[1756034413545,0.1474,4725.7,4725.6,0.2501]
[1756034413848,0.1474,4725.7,4725.0,30.493]
[1756034413849,0.7648,4725.4,4725.0,30.493]
[1756034414050,0.5392,4725.2,4725.1,0.2501]
[1756034414249,1.3402,4725.2,4725.1,0.2501]
[1756034414551,1.3402,4725.2,4725.1,0.7893]
[1756034414949,1.3402,4725.2,4725.1,1.0121]
[1756034415950,0.8366,4725.8,4725.7,1.0121]
[1756034416249,0.3562,4726.2,4725.7,1.1715]
[1756034416445,0.2256,4726.1,4726.0,1.1715]
[1756034416949,1.3402,4726.1,4726.0,1.0121]
[1756034417746,0.7648,4726.1,4726.0,1.0121]
[1756034417949,1.3402,4726.1,4726.0,1.0121]
[1756034418557,0.2256,4726.0,4725.1,0.1594]
[1756034418853,1.3402,4725.7,4725.6,1.012]
[1756034419055,0.2256,4725.7,4725.6,1.1714]
[1756034419745,0.5754,4726.2,4725.7,0.4717]
[1756034419950,0.2256,4726.0,4725.9,0.5403]
[1756034420145,0.3815,4726.0,4725.9,1.012]
[1756034420448,1.3402,4726.0,4725.9,1.012]
[1756034420755,0.5754,4726.4,4725.9,1.1714]
[1756034420951,1.3402,4726.3,4726.2,1.012]
[1756034421156,0.5392,4726.3,4725.9,0.25]
[1756034421358,0.5392,4726.0,4725.9,1.012]
[1756034421651,0.5754,4726.5,4725.9,0.5403]
[1756034421852,0.2256,4726.5,4726.4,0.9214]
[1756034422053,0.7584,4727.1,4727.0,0.5403]
[1756034422257,0.5392,4727.1,4727.0,1.012]
[1756034422446,0.8954,4727.1,4727.0,1.012]
[1756034422646,1.121,4727.1,4727.0,1.012]
[1756034422848,0.2256,4727.1,4727.0,1.1714]
[1756034423050,0.2256,4727.6,4727.5,1.1714]
[1756034423352,0.3562,4728.1,4727.8,0.5403]
[1756034423353,0.1559,4727.9,4727.8,0.5403]
[1756034423557,0.3918,4727.9,4727.8,1.012]
[1756034423852,0.6174,4727.9,4727.8,1.012]
[1756034424057,1.3402,4727.9,4727.8,1.012]
[1756034425253,0.984,4727.9,4727.8,1.012]
[1756034425454,1.3402,4727.9,4727.8,1.012]
[1756034425850,1.3402,4727.9,4727.4,0.2217]
[1756034426147,0.2256,4727.6,4727.5,1.012]